fUSD/lending_fUSD_20260626
["ID","MTS","AMOUNT","RATE_DAILY","PERIOD"]
[426461821,1782418238000,-500.0,0.00014813,2]
[426461835,1782418238000,-151.0,0.00018532,2]
[426461825,1782418238000,-500.0,0.00014813,2]
[426461831,1782418238000,-999381.6750096,0.00018532,2]
[426461859,1782418238000,-429.43112881,0.00019,2]
[426461834,1782418238000,-185252.7862749,0.00018532,2]
[426461854,1782418238000,-500.0,0.00018658,2]
[426461856,1782418238000,-429.43112881,0.000188,2]
[426461853,1782418238000,-270.27,0.000186,2]
[426461852,1782418238000,-429.43112881,0.000186,2]
[426461857,1782418238000,-218.53,0.00018868,2]
[426461855,1782418238000,-1508.64438965,0.000188,2]
[426461849,1782418238000,-151.0,0.00018532,2]
[426461858,1782418238000,-1508.64438965,0.00019,2]
[426461850,1782418238000,-151.0,0.00018532,2]
[426461848,1782418238000,-462.352939,0.00018532,2]
[426461847,1782418238000,-462.352939,0.00018532,2]
[426461851,1782418238000,-1508.64438965,0.000186,2]
[426461845,1782418238000,-462.352939,0.00018532,2]
[426461844,1782418238000,-151.0,0.00018532,2]
[426461833,1782418238000,-61750.9287582,0.00018532,2]
[426461842,1782418238000,-151.0,0.00018532,2]
[426461843,1782418238000,-243.276652,0.00018532,2]
[426461839,1782418238000,-151.0,0.00018532,2]
[426461840,1782418238000,-162.690216,0.00018532,2]
[426461841,1782418238000,-151.0,0.00018532,2]
[426461837,1782418238000,-151.0,0.00018532,2]
[426461838,1782418238000,-151.0,0.00018532,2]
[426461846,1782418238000,-462.352939,0.00018532,2]
[426461836,1782418238000,-151.0,0.00018532,2]
[426461899,1782418239000,-151.0,0.0002031,2]
[426461898,1782418239000,-151.0,0.0002031,2]
[426461905,1782418239000,-151.0,0.0002031,2]
[426461897,1782418239000,-151.0,0.0002031,2]
[426461888,1782418239000,-640.0,0.0002,2]
[426461896,1782418239000,-151.0,0.0002031,2]
[426461894,1782418239000,-151.0,0.0002031,2]
[426461892,1782418239000,-4593.22377013,0.00020277,2]
[426461904,1782418239000,-151.0,0.0002031,2]
[426461891,1782418239000,-1508.64438965,0.000202,2]
[426461895,1782418239000,-151.0,0.0002031,2]
[426461903,1782418239000,-151.0,0.0002031,2]
[426461915,1782418239000,-774.67,0.00020548,2]
[426461900,1782418239000,-151.0,0.0002031,2]
[426461902,1782418239000,-151.0,0.0002031,2]
[426461906,1782418239000,-151.0,0.0002031,2]
[426461908,1782418239000,-151.0,0.0002031,2]
[426461918,1782418239000,-1230.0,0.00020578,2]
[426461907,1782418239000,-151.0,0.0002031,2]
[426461910,1782418239000,-151.0,0.0002031,2]
[426461909,1782418239000,-151.0,0.0002031,2]
[426461912,1782418239000,-151.0,0.0002031,2]
[426461913,1782418239000,-500.0,0.00020384,2]
[426461890,1782418239000,-339.78063356,0.000202,2]
[426461914,1782418239000,-339.78063356,0.000204,2]
[426461901,1782418239000,-151.0,0.0002031,2]
[426461893,1782418239000,-151.0,0.0002031,2]
[426461880,1782418239000,-538.0,0.0002,2]
[426461887,1782418239000,-504.0,0.0002,2]
[426461917,1782418239000,-10828.14,0.00020548,2]
[426461867,1782418239000,-1508.64438965,0.000196,2]
[426461860,1782418239000,-151.0,0.00019178,2]
[426461869,1782418239000,-170.03,0.00019693,2]
[426461870,1782418239000,-170.03,0.00019693,2]
[426461861,1782418239000,-151.0,0.00019178,2]
[426461868,1782418239000,-11747.50620353,0.00019639,2]
[426461862,1782418239000,-1508.64438965,0.000192,2]
[426461863,1782418239000,-429.43112881,0.000192,2]
[426461864,1782418239000,-308.36353751,0.00019205,2]
[426461865,1782418239000,-4593.22377013,0.00019354,2]
[426461866,1782418239000,-1508.64438965,0.000194,2]
[426461871,1782418239000,-384.5323314,0.00019783,2]
[426461872,1782418239000,-1508.64438965,0.000198,2]
[426461879,1782418239000,-240.0,0.0002,2]
[426461882,1782418239000,-273.0,0.0002,2]
[426461873,1782418239000,-1018.0,0.00019868,5]
[426461876,1782418239000,-961.0,0.0002,2]
[426461877,1782418239000,-1047.0,0.0002,2]
[426461881,1782418239000,-226.0,0.0002,2]
[426461875,1782418239000,-1508.64438965,0.0002,2]
[426461874,1782418239000,-339.78063356,0.0002,2]
[426461878,1782418239000,-431.0,0.0002,2]
[426461883,1782418239000,-1272.0,0.0002,2]
[426461884,1782418239000,-413.0,0.0002,2]
[426461885,1782418239000,-154.0,0.0002,2]
[426461886,1782418239000,-4335.0,0.0002,2]
[426461889,1782418239000,-2047.78890568,0.0002007,2]
[426461911,1782418239000,-151.0,0.0002031,2]
[426461942,1782418239000,-961.0,0.00021,2]
[426461919,1782418239000,-339.78063356,0.000206,2]
[426461950,1782418239000,-413.0,0.00021,2]
[426461953,1782418239000,-151.0,0.00021,2]
[426461951,1782418239000,-151.0,0.00021,2]
[426461956,1782418239000,-462.352939,0.00021,2]
[426461966,1782418239000,-166.98,0.00021196,2]
[426461955,1782418239000,-151.0,0.00021,2]
[426461958,1782418239000,-462.352939,0.00021,2]
[426461957,1782418239000,-462.352939,0.00021,2]
[426461965,1782418239000,-151.0,0.00021057,2]
[426461961,1782418239000,-504.0,0.00021,2]
[426461960,1782418239000,-151.0,0.00021,2]
[426461963,1782418239000,-180.6,0.00021026,2]
[426461945,1782418239000,-240.0,0.00021,2]
[426461964,1782418239000,-151.0,0.00021057,2]
[426461967,1782418239000,-4593.22377013,0.00021199,2]
[426461970,1782418239000,-1586.90193583,0.000216,2]
[426461976,1782418239000,-1473.30168622,0.00021947,2]
[426461977,1782418239000,-961.0,0.00022,2]
[426461969,1782418239000,-1586.90193583,0.000214,2]
[426461968,1782418239000,-1586.90193583,0.000212,2]
[426461974,1782418239000,-500.0,0.00021947,2]
[426461973,1782418239000,-5000.0,0.00021918,2]
[426461971,1782418239000,-2047.78890568,0.00021709,2]
[426461972,1782418239000,-1586.90193583,0.000219,2]
[426461975,1782418239000,-1500.0,0.00021947,2]
[426461916,1782418239000,-151.0,0.00020548,2]
[426461962,1782418239000,-640.0,0.00021,2]
[426461946,1782418239000,-538.0,0.00021,2]
[426461959,1782418239000,-462.352939,0.00021,2]
[426461948,1782418239000,-273.0,0.00021,2]
[426461921,1782418239000,-3649.0,0.00020673,2]
[426461954,1782418239000,-151.0,0.00021,2]
[426461922,1782418239000,-6084.0,0.00020673,2]
[426461924,1782418239000,-339.78063356,0.000208,2]
[426461923,1782418239000,-521.23250833,0.00020743,2]
[426461920,1782418239000,-270.27,0.000206,2]
[426461930,1782418239000,-1277.0,0.00020833,2]
[426461926,1782418239000,-150.0,0.00020833,2]
[426461925,1782418239000,-150.0,0.00020833,2]
[426461927,1782418239000,-150.0,0.00020833,2]
[426461929,1782418239000,-3562.0,0.00020833,2]
[426461931,1782418239000,-383.0,0.00020833,2]
[426461932,1782418239000,-1361.0,0.00020833,2]
[426461933,1782418239000,-151.0,0.00020833,2]
[426461928,1782418239000,-150.0,0.00020833,2]
[426461944,1782418239000,-431.0,0.00021,2]
[426461947,1782418239000,-226.0,0.00021,2]
[426461935,1782418239000,-151.0,0.00020894,2]
[426461952,1782418239000,-151.0,0.00021,2]
[426461949,1782418239000,-1272.0,0.00021,2]
[426461943,1782418239000,-1047.0,0.00021,2]
[426461941,1782418239000,-1586.90193583,0.00021,2]
[426461940,1782418239000,-151.0,0.00020957,2]
[426461938,1782418239000,-184.63828196,0.00020952,2]
[426461936,1782418239000,-151.0,0.00020894,2]
[426461937,1782418239000,-151.0,0.00020894,2]
[426461934,1782418239000,-11747.50620353,0.00020894,2]
[426461939,1782418239000,-822.22625349,0.00020957,2]
[426462028,1782418240000,-500.0,0.00023014,2]
[426462029,1782418240000,-500.0,0.00023014,2]
[426462020,1782418240000,-500.0,0.00023014,2]
[426462026,1782418240000,-500.0,0.00023014,2]
[426462018,1782418240000,-872.0,0.00023014,2]
[426462009,1782418240000,-413.0,0.00023,2]
[426462013,1782418240000,-872.0,0.00023014,2]
[426462012,1782418240000,-151.0,0.00023014,2]
[426462011,1782418240000,-640.0,0.00023,2]
[426462008,1782418240000,-1272.0,0.00023,2]
[426462023,1782418240000,-500.0,0.00023014,2]
[426462021,1782418240000,-872.0,0.00023014,2]
[426462025,1782418240000,-500.0,0.00023014,2]
[426462038,1782418240000,-500.0,0.00023014,2]
[426462019,1782418240000,-872.0,0.00023014,2]
[426462024,1782418240000,-872.0,0.00023014,2]
[426462027,1782418240000,-872.0,0.00023014,2]
[426462030,1782418240000,-872.0,0.00023014,2]
[426462032,1782418240000,-872.0,0.00023014,2]
[426462042,1782418240000,-579.7515813,0.00023014,2]
[426462043,1782418240000,-500.0,0.00023014,2]
[426462031,1782418240000,-500.0,0.00023014,2]
[426462035,1782418240000,-500.0,0.00023014,2]
[426462033,1782418240000,-500.0,0.00023014,2]
[426462034,1782418240000,-201.61434256,0.00023014,2]
[426462036,1782418240000,-872.0,0.00023014,2]
[426462014,1782418240000,-872.0,0.00023014,2]
[426462022,1782418240000,-500.0,0.00023014,2]
[426462015,1782418240000,-872.0,0.00023014,2]
[426461979,1782418240000,-431.0,0.00022,2]
[426462010,1782418240000,-504.0,0.00023,2]
[426462037,1782418240000,-872.0,0.00023014,2]
[426461991,1782418240000,-166.98,0.0002207,2]
[426461990,1782418240000,-640.0,0.00022,2]
[426461981,1782418240000,-538.0,0.00022,2]
[426461982,1782418240000,-226.0,0.00022,2]
[426461984,1782418240000,-30370.79844328,0.00022,4]
[426461983,1782418240000,-273.0,0.00022,2]
[426461985,1782418240000,-1272.0,0.00022,2]
[426461989,1782418240000,-504.0,0.00022,2]
[426461987,1782418240000,-413.0,0.00022,2]
[426461988,1782418240000,-623.53,0.00022,2]
[426461992,1782418240000,-308.36353751,0.00022125,2]
[426461995,1782418240000,-518.5,0.00022495,2]
[426462005,1782418240000,-538.0,0.00023,2]
[426461998,1782418240000,-151.0,0.00022701,2]
[426462000,1782418240000,-166.98,0.00022945,2]
[426461997,1782418240000,-2010.64,0.00022562,2]
[426461996,1782418240000,-270.27,0.000225,7]
[426462004,1782418240000,-240.0,0.00023,2]
[426461999,1782418240000,-151.0,0.00022701,2]
[426462002,1782418240000,-1047.0,0.00023,2]
[426461993,1782418240000,-11747.50620353,0.00022148,2]
[426462001,1782418240000,-961.0,0.00023,2]
[426462003,1782418240000,-431.0,0.00023,2]
[426462006,1782418240000,-226.0,0.00023,2]
[426462017,1782418240000,-872.0,0.00023014,2]
[426462016,1782418240000,-872.0,0.00023014,2]
[426462007,1782418240000,-273.0,0.00023,2]
[426461994,1782418240000,-166.0,0.00022333,2]
[426462039,1782418240000,-872.0,0.00023014,2]
[426461978,1782418240000,-1047.0,0.00022,2]
[426462041,1782418240000,-872.0,0.00023014,2]
[426462080,1782418240000,-619.84660301,0.00023014,2]
[426462081,1782418240000,-500.0,0.00023014,2]
[426462079,1782418240000,-500.0,0.00023014,2]
[426462078,1782418240000,-500.0,0.00023014,2]
[426462076,1782418240000,-876.3631274,0.00023014,2]
[426462082,1782418240000,-500.0,0.00023014,2]
[426462085,1782418240000,-500.0,0.00023014,2]
[426462087,1782418240000,-500.0,0.00023014,2]
[426462088,1782418240000,-878.0,0.00023014,2]
[426462083,1782418240000,-500.0,0.00023014,2]
[426462084,1782418240000,-500.0,0.00023014,2]
[426462089,1782418240000,-446.0,0.00023014,2]
[426462091,1782418240000,-446.0,0.00023014,2]
[426462073,1782418240000,-872.0,0.00023014,2]
[426462086,1782418240000,-446.0,0.00023014,2]
[426462090,1782418240000,-500.0,0.00023014,2]
[426462093,1782418240000,-500.0,0.00023014,2]
[426462094,1782418240000,-446.0,0.00023014,2]
[426462096,1782418240000,-500.0,0.00023014,2]
[426462097,1782418240000,-446.0,0.00023014,2]
[426462095,1782418240000,-878.0,0.00023014,2]
[426462103,1782418240000,-500.0,0.00023014,2]
[426462101,1782418240000,-500.0,0.00023014,2]
[426462098,1782418240000,-446.0,0.00023014,2]
[426462100,1782418240000,-878.0,0.00023014,2]
[426462099,1782418240000,-500.0,0.00023014,2]
[426462102,1782418240000,-446.0,0.00023014,2]
[426462040,1782418240000,-500.0,0.00023014,2]
[426462092,1782418240000,-878.0,0.00023014,2]
[426462071,1782418240000,-573.35020874,0.00023014,2]
[426461980,1782418240000,-240.0,0.00022,2]
[426462070,1782418240000,-500.0,0.00023014,2]
[426462046,1782418240000,-500.0,0.00023014,2]
[426462044,1782418240000,-872.0,0.00023014,2]
[426462047,1782418240000,-500.0,0.00023014,2]
[426462052,1782418240000,-872.0,0.00023014,2]
[426462045,1782418240000,-500.0,0.00023014,2]
[426462048,1782418240000,-500.0,0.00023014,2]
[426462049,1782418240000,-500.0,0.00023014,2]
[426462050,1782418240000,-500.0,0.00023014,2]
[426462054,1782418240000,-500.0,0.00023014,2]
[426462055,1782418240000,-500.0,0.00023014,2]
[426462051,1782418240000,-500.0,0.00023014,2]
[426462053,1782418240000,-500.0,0.00023014,2]
[426462067,1782418240000,-500.0,0.00023014,2]
[426462057,1782418240000,-500.0,0.00023014,2]
[426462077,1782418240000,-152.19371287,0.00023014,2]
[426462058,1782418240000,-212.0,0.00023014,2]
[426462068,1782418240000,-500.0,0.00023014,2]
[426462075,1782418240000,-872.0,0.00023014,2]
[426462074,1782418240000,-872.0,0.00023014,2]
[426462069,1782418240000,-500.0,0.00023014,2]
[426462065,1782418240000,-500.0,0.00023014,2]
[426462062,1782418240000,-500.0,0.00023014,2]
[426462072,1782418240000,-872.0,0.00023014,2]
[426462066,1782418240000,-500.0,0.00023014,2]
[426462064,1782418240000,-500.0,0.00023014,2]
[426462061,1782418240000,-500.0,0.00023014,2]
[426462060,1782418240000,-500.0,0.00023014,2]
[426462056,1782418240000,-500.0,0.00023014,2]
[426462059,1782418240000,-500.0,0.00023014,2]
[426462063,1782418240000,-872.0,0.00023014,2]
[426462148,1782418241000,-446.0,0.00023014,2]
[426462144,1782418241000,-500.0,0.00023014,2]
[426462143,1782418241000,-500.0,0.00023014,2]
[426462145,1782418241000,-878.0,0.00023014,2]
[426462138,1782418241000,-878.0,0.00023014,2]
[426462140,1782418241000,-500.0,0.00023014,2]
[426462135,1782418241000,-446.0,0.00023014,2]
[426462136,1782418241000,-500.0,0.00023014,2]
[426462141,1782418241000,-500.0,0.00023014,2]
[426462137,1782418241000,-500.0,0.00023014,2]
[426462150,1782418241000,-500.0,0.00023014,2]
[426462139,1782418241000,-500.0,0.00023014,2]
[426462147,1782418241000,-615.02804069,0.00023014,2]
[426462154,1782418241000,-500.0,0.00023014,2]
[426462153,1782418241000,-500.0,0.00023014,2]
[426462152,1782418241000,-500.0,0.00023014,2]
[426462151,1782418241000,-878.0,0.00023014,2]
[426462149,1782418241000,-500.0,0.00023014,2]
[426462164,1782418241000,-500.0,0.00023014,2]
[426462165,1782418241000,-500.0,0.00023014,2]
[426462134,1782418241000,-500.0,0.00023014,2]
[426462161,1782418241000,-406.98018119,0.00023014,2]
[426462158,1782418241000,-500.0,0.00023014,2]
[426462163,1782418241000,-446.0,0.00023014,2]
[426462155,1782418241000,-500.0,0.00023014,2]
[426462159,1782418241000,-500.0,0.00023014,2]
[426462160,1782418241000,-500.0,0.00023014,2]
[426462146,1782418241000,-500.0,0.00023014,2]
[426462132,1782418241000,-878.0,0.00023014,2]
[426462129,1782418241000,-500.0,0.00023014,2]
[426462131,1782418241000,-878.0,0.00023014,2]
[426462105,1782418241000,-500.0,0.00023014,2]
[426462104,1782418241000,-878.0,0.00023014,2]
[426462107,1782418241000,-500.0,0.00023014,2]
[426462117,1782418241000,-446.0,0.00023014,2]
[426462119,1782418241000,-500.0,0.00023014,2]
[426462110,1782418241000,-446.0,0.00023014,2]
[426462118,1782418241000,-878.0,0.00023014,2]
[426462109,1782418241000,-500.0,0.00023014,2]
[426462106,1782418241000,-446.0,0.00023014,2]
[426462108,1782418241000,-878.0,0.00023014,2]
[426462112,1782418241000,-176.07172224,0.00023014,2]
[426462111,1782418241000,-878.0,0.00023014,2]
[426462116,1782418241000,-500.0,0.00023014,2]
[426462113,1782418241000,-500.0,0.00023014,2]
[426462115,1782418241000,-878.0,0.00023014,2]
[426462114,1782418241000,-446.0,0.00023014,2]
[426462120,1782418241000,-446.0,0.00023014,2]
[426462125,1782418241000,-446.0,0.00023014,2]
[426462122,1782418241000,-500.0,0.00023014,2]
[426462126,1782418241000,-500.0,0.00023014,2]
[426462124,1782418241000,-878.0,0.00023014,2]
[426462127,1782418241000,-500.0,0.00023014,2]
[426462157,1782418241000,-500.0,0.00023014,2]
[426462128,1782418241000,-878.0,0.00023014,2]
[426462130,1782418241000,-500.0,0.00023014,2]
[426462123,1782418241000,-446.0,0.00023014,2]
[426462121,1782418241000,-878.0,0.00023014,2]
[426462133,1782418241000,-500.0,0.00023014,2]
[426462162,1782418241000,-500.0,0.00023014,2]
[426462142,1782418241000,-446.0,0.00023014,2]
[426462166,1782418241000,-878.0,0.00023014,2]
[426462198,1782418241000,-500.0,0.00023014,2]
[426462204,1782418241000,-500.0,0.00023014,2]
[426462202,1782418241000,-500.0,0.00023014,2]
[426462205,1782418241000,-500.0,0.00023014,2]
[426462200,1782418241000,-506.92104391,0.00023014,2]
[426462201,1782418241000,-500.0,0.00023014,2]
[426462207,1782418241000,-500.0,0.00023014,2]
[426462218,1782418241000,-500.0,0.00023014,2]
[426462206,1782418241000,-500.0,0.00023014,2]
[426462217,1782418241000,-150.0,0.00023014,2]
[426462209,1782418241000,-500.0,0.00023014,2]
[426462208,1782418241000,-500.0,0.00023014,2]
[426462215,1782418241000,-515.0179115,0.00023014,2]
[426462199,1782418241000,-500.0,0.00023014,2]
[426462213,1782418241000,-173.74778307,0.00023014,2]
[426462214,1782418241000,-500.0,0.00023014,2]
[426462210,1782418241000,-501.65353648,0.00023014,2]
[426462212,1782418241000,-150.0,0.00023014,2]
[426462211,1782418241000,-150.0,0.00023014,2]
[426462220,1782418241000,-500.0,0.00023014,2]
[426462219,1782418241000,-188.64253889,0.00023014,2]
[426462222,1782418241000,-500.0,0.00023014,2]
[426462225,1782418241000,-432.84396056,0.00023014,2]
[426462226,1782418241000,-500.0,0.00023014,2]
[426462224,1782418241000,-500.0,0.00023014,2]
[426462227,1782418241000,-606.10651734,0.00023014,2]
[426462156,1782418241000,-500.0,0.00023014,2]
[426462221,1782418241000,-500.0,0.00023014,2]
[426462216,1782418241000,-150.0,0.00023014,2]
[426462196,1782418241000,-500.0,0.00023014,2]
[426462223,1782418241000,-500.0,0.00023014,2]
[426462203,1782418241000,-150.0,0.00023014,2]
[426462197,1782418241000,-500.0,0.00023014,2]
[426462168,1782418241000,-500.0,0.00023014,2]
[426462177,1782418241000,-878.0,0.00023014,2]
[426462167,1782418241000,-500.0,0.00023014,2]
[426462171,1782418241000,-500.0,0.00023014,2]
[426462169,1782418241000,-503.11177321,0.00023014,2]
[426462176,1782418241000,-446.0,0.00023014,2]
[426462178,1782418241000,-446.0,0.00023014,2]
[426462170,1782418241000,-500.0,0.00023014,2]
[426462174,1782418241000,-587.58954103,0.00023014,2]
[426462179,1782418241000,-878.0,0.00023014,2]
[426462191,1782418241000,-500.0,0.00023014,2]
[426462181,1782418241000,-878.0,0.00023014,2]
[426462187,1782418241000,-882.0,0.00023014,2]
[426462172,1782418241000,-500.0,0.00023014,2]
[426462185,1782418241000,-878.0,0.00023014,2]
[426462190,1782418241000,-500.0,0.00023014,2]
[426462193,1782418241000,-500.0,0.00023014,2]
[426462192,1782418241000,-500.0,0.00023014,2]
[426462194,1782418241000,-500.0,0.00023014,2]
[426462195,1782418241000,-500.0,0.00023014,2]
[426462183,1782418241000,-878.0,0.00023014,2]
[426462182,1782418241000,-446.0,0.00023014,2]
[426462186,1782418241000,-455.56125815,0.00023014,2]
[426462189,1782418241000,-500.0,0.00023014,2]
[426462180,1782418241000,-446.0,0.00023014,2]
[426462184,1782418241000,-446.0,0.00023014,2]
[426462188,1782418241000,-500.0,0.00023014,2]
[426462268,1782418242000,-1229.0,0.00023578,2]
[426462278,1782418242000,-157.46039437,0.00023627,2]
[426462280,1782418242000,-168.85718495,0.00023627,2]
[426462260,1782418242000,-150.0,0.00023288,2]
[426462263,1782418242000,-153.0,0.00023289,2]
[426462266,1782418242000,-214.5,0.000234,2]
[426462255,1782418242000,-500.0,0.00023014,2]
[426462259,1782418242000,-150.0,0.00023288,2]
[426462265,1782418242000,-2047.78890568,0.00023347,2]
[426462262,1782418242000,-150.0,0.00023288,2]
[426462257,1782418242000,-537.6845,0.00023043,2]
[426462267,1782418242000,-11747.50620353,0.00023403,2]
[426462269,1782418242000,-557.57882651,0.00023591,2]
[426462271,1782418242000,-178.26332024,0.00023627,2]
[426462284,1782418242000,-154.64395472,0.00023627,2]
[426462282,1782418242000,-157.01345415,0.00023627,2]
[426462270,1782418242000,-210.06672429,0.00023607,2]
[426462272,1782418242000,-164.48063088,0.00023627,2]
[426462274,1782418242000,-157.85801191,0.00023627,2]
[426462276,1782418242000,-172.05357506,0.00023627,2]
[426462286,1782418242000,-152.6866486,0.00023627,2]
[426462288,1782418242000,-169.47253968,0.00023642,2]
[426462287,1782418242000,-158.93195234,0.00023631,2]
[426462290,1782418242000,-164.58042794,0.00023642,2]
[426462261,1782418242000,-150.0,0.00023288,2]
[426462292,1782418242000,-170.5095806,0.00023642,2]
[426462285,1782418242000,-173.93854472,0.00023627,2]
[426462256,1782418242000,-264.53919535,0.00023014,2]
[426462242,1782418242000,-500.0,0.00023014,2]
[426462254,1782418242000,-500.0,0.00023014,2]
[426462289,1782418242000,-297.13390379,0.00023642,2]
[426462230,1782418242000,-500.0,0.00023014,2]
[426462231,1782418242000,-500.0,0.00023014,2]
[426462229,1782418242000,-500.0,0.00023014,2]
[426462228,1782418242000,-496.23414018,0.00023014,2]
[426462233,1782418242000,-500.0,0.00023014,2]
[426462232,1782418242000,-500.0,0.00023014,2]
[426462235,1782418242000,-500.0,0.00023014,2]
[426462234,1782418242000,-500.0,0.00023014,2]
[426462236,1782418242000,-500.0,0.00023014,2]
[426462239,1782418242000,-500.0,0.00023014,2]
[426462237,1782418242000,-500.0,0.00023014,2]
[426462238,1782418242000,-500.0,0.00023014,2]
[426462240,1782418242000,-500.0,0.00023014,2]
[426462241,1782418242000,-500.0,0.00023014,2]
[426462253,1782418242000,-500.0,0.00023014,2]
[426462243,1782418242000,-254.48877466,0.00023014,2]
[426462244,1782418242000,-500.0,0.00023014,2]
[426462245,1782418242000,-500.0,0.00023014,2]
[426462252,1782418242000,-500.0,0.00023014,2]
[426462246,1782418242000,-500.0,0.00023014,2]
[426462248,1782418242000,-500.0,0.00023014,2]
[426462247,1782418242000,-500.0,0.00023014,2]
[426462249,1782418242000,-500.0,0.00023014,2]
[426462250,1782418242000,-500.0,0.00023014,2]
[426462251,1782418242000,-500.0,0.00023014,2]
[426462258,1782418242000,-150.0,0.00023288,2]
[426462264,1782418242000,-153.90461545,0.00023289,2]
[426462297,1782418242000,-188.17629022,0.00023642,2]
[426462328,1782418242000,-273.0,0.00024,2]
[426462293,1782418242000,-270.89178251,0.00023642,2]
[426462332,1782418242000,-640.0,0.00024,2]
[426462330,1782418242000,-413.0,0.00024,2]
[426462324,1782418242000,-431.0,0.00024,2]
[426462333,1782418242000,-200.0,0.00024039,2]
[426462329,1782418242000,-1272.0,0.00024,2]
[426462331,1782418242000,-504.0,0.00024,2]
[426462327,1782418242000,-226.0,0.00024,2]
[426462334,1782418242000,-1000.0,0.000242,2]
[426462336,1782418242000,-180.56,0.00024216,7]
[426462346,1782418242000,-151.0,0.00024658,2]
[426462338,1782418242000,-270.27,0.000244,7]
[426462337,1782418242000,-232.16561414,0.00024268,2]
[426462340,1782418242000,-623.53,0.00024545,7]
[426462344,1782418242000,-755.46,0.00024658,2]
[426462343,1782418242000,-1000.0,0.00024658,2]
[426462342,1782418242000,-183.52,0.00024658,2]
[426462339,1782418242000,-151.0,0.00024521,2]
[426462341,1782418242000,-533.62848652,0.0002457,2]
[426462345,1782418242000,-151.0,0.00024658,2]
[426462351,1782418242000,-685.20682658,0.00024658,2]
[426462347,1782418242000,-11747.50620353,0.00024658,2]
[426462352,1782418242000,-502.44906609,0.00024684,2]
[426462348,1782418242000,-187.89556708,0.00024658,2]
[426462353,1782418242000,-166.98,0.00024694,2]
[426462354,1782418242000,-502.44906609,0.00024743,2]
[426462298,1782418242000,-180.77947568,0.00023642,2]
[426462355,1782418242000,-3714.5409648,0.00024752,2]
[426462326,1782418242000,-538.0,0.00024,2]
[426462323,1782418242000,-1047.0,0.00024,2]
[426462335,1782418242000,-150.44,0.00024216,7]
[426462320,1782418242000,-1198.0,0.00023937,5]
[426462294,1782418242000,-366.82617716,0.00023642,2]
[426462325,1782418242000,-240.0,0.00024,2]
[426462296,1782418242000,-162.04607962,0.00023642,2]
[426462291,1782418242000,-336.15235606,0.00023642,2]
[426462295,1782418242000,-159.73017569,0.00023642,2]
[426462312,1782418242000,-6084.0,0.00023673,2]
[426462311,1782418242000,-3649.0,0.00023673,2]
[426462301,1782418242000,-208.12497018,0.00023643,2]
[426462300,1782418242000,-177.00548086,0.00023643,2]
[426462307,1782418242000,-156.54802182,0.00023643,2]
[426462303,1782418242000,-154.09439822,0.00023643,2]
[426462304,1782418242000,-174.76171757,0.00023643,2]
[426462305,1782418242000,-162.91694022,0.00023643,2]